fUSD/lending_fUSD_20240412
["ID","MTS","AMOUNT","RATE_DAILY","PERIOD"]
[322247894,1712913046805,-1102.09,0.00027397,2]
[322247896,1712913046816,-500.0,0.00027397,2]
[322247897,1712913046825,-500.0,0.00027397,2]
[322247906,1712913046894,-500.0,0.00027397,2]
[322247908,1712913046903,-724.59,0.00027397,2]
[322247909,1712913046913,-500.0,0.00027397,2]
[322247911,1712913046923,-500.0,0.00027397,2]
[322247913,1712913046935,-6220.28,0.00027397,2]
[322247916,1712913046948,-710.01,0.00027397,2]
[322247918,1712913046958,-500.0,0.00027397,2]
[322247920,1712913046970,-500.0,0.00027397,2]
[322247922,1712913046982,-500.0,0.00027397,2]
[322247924,1712913046992,-500.0,0.00027397,2]
[322247927,1712913047003,-500.0,0.00027397,2]
[322247929,1712913047016,-500.0,0.00027397,2]
[322247931,1712913047026,-500.0,0.00027397,2]
[322247933,1712913047037,-500.0,0.00027397,2]
[322247934,1712913047049,-500.0,0.00027397,2]
[322247935,1712913047059,-652.05,0.00027397,2]
[322247936,1712913047071,-500.0,0.00027397,2]
[322247937,1712913047082,-500.0,0.00027397,2]
[322247938,1712913047091,-500.0,0.00027397,2]
[322247939,1712913047104,-1053.91,0.00027397,2]
[322247940,1712913047116,-2164.81,0.00027397,2]
[322247941,1712913047127,-2583.5,0.00027397,2]
[322247942,1712913047138,-500.0,0.00027397,2]
[322247943,1712913047150,-500.0,0.00027397,2]
[322247944,1712913047160,-500.0,0.00027397,2]
[322247945,1712913047171,-500.0,0.00027397,2]
[322247946,1712913047182,-500.0,0.00027397,2]
[322247947,1712913047192,-500.0,0.00027397,2]
[322247948,1712913047203,-500.0,0.00027397,2]
[322247949,1712913047217,-500.0,0.00027397,2]
[322247950,1712913047231,-500.0,0.00027397,2]
[322247951,1712913047242,-500.0,0.00027397,2]
[322247952,1712913047252,-500.0,0.00027397,2]
[322247953,1712913047265,-500.0,0.00027397,2]
[322247954,1712913047275,-500.0,0.00027397,2]
[322247955,1712913047286,-500.0,0.00027397,2]
[322247956,1712913047296,-500.0,0.00027397,2]
[322247957,1712913047306,-500.0,0.00027397,2]
[322247958,1712913047317,-500.0,0.00027397,2]
[322247959,1712913047330,-500.0,0.00027397,2]
[322247960,1712913047340,-500.0,0.00027397,2]
[322247961,1712913047349,-500.0,0.00027397,2]
[322247962,1712913047358,-500.0,0.00027397,2]
[322247963,1712913047367,-1027.51,0.00027397,2]
[322247964,1712913047377,-644.65092322,0.00027397,2]
[322247965,1712913047388,-500.0,0.00027397,2]
[322247966,1712913047399,-500.0,0.00027397,2]
[322247967,1712913047409,-2080.21,0.00027397,2]
[322247968,1712913047418,-1105.7,0.00027397,2]
[322247969,1712913047428,-500.0,0.00027397,2]
[322247970,1712913047437,-1722.55,0.00027397,2]
[322247971,1712913047448,-1530.77,0.00027397,2]
[322247972,1712913047457,-583.55,0.00027397,2]
[322247973,1712913047467,-500.0,0.00027397,2]
[322247974,1712913047477,-500.0,0.00027397,2]
[322247975,1712913047487,-1217.73,0.00027397,2]
[322247976,1712913047496,-11130.2,0.00027397,2]
[322247977,1712913047506,-821.08,0.00027397,2]
[322247978,1712913047516,-500.0,0.00027397,2]
[322247979,1712913047527,-500.0,0.00027397,2]
[322247980,1712913047537,-500.0,0.00027397,2]
[322247981,1712913047547,-1938.7,0.00027397,2]
[322247982,1712913047557,-500.0,0.00027397,2]
[322247983,1712913047568,-500.0,0.00027397,2]
[322247984,1712913047578,-500.0,0.00027397,2]
[322247985,1712913047590,-500.0,0.00027397,2]
[322247986,1712913047603,-930.87,0.00027397,2]
[322247987,1712913047614,-2176.5,0.00027397,2]
[322247988,1712913047624,-500.0,0.00027397,2]
[322247989,1712913047634,-500.0,0.00027397,2]
[322247990,1712913047644,-500.0,0.00027397,2]
[322247991,1712913047654,-551.46,0.00027397,2]
[322247992,1712913047664,-2252.47,0.00027397,2]
[322247993,1712913047675,-500.0,0.00027397,2]
[322247994,1712913047686,-500.0,0.00027397,2]
[322247995,1712913047696,-500.0,0.00027397,2]
[322247996,1712913047706,-500.0,0.00027397,2]
[322247997,1712913047716,-500.0,0.00027397,2]
[322247998,1712913047726,-500.0,0.00027397,2]
[322247999,1712913047736,-1111.76,0.00027397,2]
[322248000,1712913047747,-621.09,0.00027397,2]
[322248001,1712913047757,-500.1716418,0.00027397,2]
[322248002,1712913047766,-779.64,0.00027397,2]
[322248003,1712913047776,-1124.57,0.00027397,2]
[322248004,1712913047787,-500.0,0.00027397,2]
[322248005,1712913047797,-500.0,0.00027397,2]
[322248006,1712913047809,-500.0,0.00027397,2]
[322248007,1712913047822,-500.0,0.00027397,2]
[322248008,1712913047834,-500.0,0.00027397,2]
[322248009,1712913047844,-500.0,0.00027397,2]
[322248010,1712913047855,-500.0,0.00027397,2]
[322248011,1712913047865,-914.69,0.00027397,2]
[322248012,1712913047875,-925.11,0.00027397,2]
[322248013,1712913047887,-1311.53,0.00027397,2]
[322248014,1712913047897,-500.0,0.00027397,2]
[322248015,1712913047908,-888.39,0.00027397,2]
[322248016,1712913047919,-508.91643077,0.00027397,2]
[322248017,1712913047930,-500.0,0.00027397,2]
[322248018,1712913047940,-500.0,0.00027397,2]
[322248019,1712913047949,-742.51,0.00027397,2]
[322248020,1712913047960,-500.0,0.00027397,2]
[322248021,1712913047973,-500.89904354,0.00027397,2]
[322248022,1712913047983,-500.0,0.00027397,2]
[322248023,1712913047994,-500.0,0.00027397,2]
[322248024,1712913048006,-500.0,0.00027397,2]
[322248025,1712913048017,-500.0,0.00027397,2]
[322248026,1712913048028,-1305.4,0.00027397,2]
[322248027,1712913048038,-1858.46,0.00027397,2]
[322248028,1712913048049,-500.0,0.00027397,2]
[322248029,1712913048061,-844.56,0.00027397,2]
[322248030,1712913048070,-500.0,0.00027397,2]
[322248031,1712913048080,-510.32,0.00027397,2]
[322248032,1712913048089,-920.2,0.00027397,2]
[322248033,1712913048098,-500.0,0.00027397,2]
[322248034,1712913048109,-351.06763921,0.00027397,2]
[322248035,1712913048120,-500.0,0.00027397,2]
[322248036,1712913048130,-1490.11,0.00027397,2]
[322248037,1712913048140,-500.0,0.00027397,2]
[322248038,1712913048149,-662.41,0.00027397,2]
[322248039,1712913048160,-500.0,0.00027397,2]
[322248040,1712913048172,-663.55,0.00027397,2]
[322248041,1712913048183,-500.0,0.00027397,2]
[322248042,1712913048193,-506.71801804,0.00027397,2]
[322248043,1712913048203,-500.0,0.00027397,2]
[322248044,1712913048213,-500.0,0.00027397,2]
[322248045,1712913048224,-500.0,0.00027397,2]
[322248046,1712913048234,-500.0,0.00027397,2]
[322248047,1712913048245,-264.24684634,0.00027397,2]
[322248048,1712913048256,-510.34096986,0.00027397,2]
[322248049,1712913048266,-688.0,0.00027397,2]
[322248050,1712913048277,-500.0,0.00027397,2]
[322248051,1712913048288,-500.0,0.00027397,2]
[322248052,1712913048299,-500.0,0.00027397,2]
[322248053,1712913048310,-500.0,0.00027397,2]
[322248054,1712913048320,-299.5386236,0.00027397,2]
[322248055,1712913048330,-500.0,0.00027397,2]
[322248056,1712913048343,-4281.14,0.00027397,2]
[322248057,1712913048356,-500.0,0.00027397,2]
[322248058,1712913048368,-500.0,0.00027397,2]
[322248059,1712913048379,-500.0,0.00027397,2]
[322248060,1712913048390,-684.9,0.00027397,2]
[322248061,1712913048403,-500.0,0.00027397,2]
[322248062,1712913048414,-447.48,0.00027397,2]
[322248063,1712913048424,-229.86,0.00027397,2]
[322248064,1712913048435,-873.38,0.00027397,10]
[322248065,1712913048445,-519.49,0.000274,2]
[322248066,1712913048455,-677.6,0.000274,2]
[322248067,1712913048464,-150.0,0.000274,2]
[322248068,1712913048474,-49558.77039304,0.000275,6]
[322248069,1712913048484,-367.0,0.00027585,2]
[322248070,1712913048495,-157.57019945,0.0002759,2]
[322248071,1712913048506,-154.67867002,0.00027658,2]
[322248072,1712913048517,-157.57019945,0.00027669,2]
[322248073,1712913048527,-500.0,0.0002767,2]
[322248074,1712913048538,-500.0,0.00027671,2]
[322248075,1712913048549,-500.0,0.00027671,2]
[322248076,1712913048558,-500.0,0.00027671,2]
[322248077,1712913048569,-500.0,0.00027671,2]
[322248078,1712913048580,-500.0,0.00027671,2]
[322248079,1712913048595,-500.0,0.00027671,2]
[322248080,1712913048605,-287.70114185,0.00027671,2]
[322248081,1712913048616,-500.0,0.00027671,2]
[322248082,1712913048627,-500.0,0.00027671,2]
[322248083,1712913048639,-500.0,0.00027671,2]
[322248084,1712913048649,-500.0,0.00027671,2]
[322248085,1712913048658,-500.0,0.00027671,2]
[322248086,1712913048672,-500.0,0.00027671,2]
[322248087,1712913048682,-500.0,0.00027671,2]
[322248088,1712913048693,-500.0,0.00027671,2]
[322248089,1712913048705,-458.98251499,0.00027671,2]
[322248090,1712913048716,-510.25310543,0.00027671,2]
[322248091,1712913048726,-500.0,0.00027671,2]
[322248092,1712913048736,-500.0,0.00027671,2]
[322248093,1712913048746,-508.7404605,0.00027671,2]
[322248094,1712913048758,-500.0,0.00027671,2]
[322248095,1712913048767,-500.0,0.00027671,2]
[322248096,1712913048777,-500.0,0.00027671,2]
[322248097,1712913048787,-500.0,0.00027671,2]
[322248098,1712913048797,-506.66494919,0.00027671,2]
[322248099,1712913048808,-500.0,0.00027671,2]
[322248100,1712913048821,-500.0,0.00027671,2]
[322248101,1712913048831,-500.0,0.00027671,2]
[322248102,1712913048841,-500.0,0.00027671,2]
[322248103,1712913048851,-500.0,0.00027671,2]
[322248104,1712913048861,-500.0,0.00027671,2]
[322248105,1712913048870,-500.0,0.00027671,2]
[322248106,1712913048880,-500.0,0.00027671,2]
[322248107,1712913048890,-500.0,0.00027671,2]
[322248108,1712913048899,-500.0,0.00027671,2]
[322248109,1712913048908,-500.0,0.00027671,2]
[322248110,1712913048919,-500.0,0.00027671,2]
[322248111,1712913048929,-500.0,0.00027671,2]
[322248112,1712913048938,-513.71931441,0.00027671,2]
[322248113,1712913048948,-500.0,0.00027671,2]
[322248114,1712913048958,-500.0,0.00027671,2]
[322248115,1712913048967,-500.0,0.00027671,2]
[322248116,1712913048979,-500.0,0.00027671,2]
[322248117,1712913048989,-500.0,0.00027671,2]
[322248118,1712913048999,-500.0,0.00027671,2]
[322248119,1712913049009,-500.0,0.00027671,2]
[322248120,1712913049019,-500.0,0.00027671,2]
[322248121,1712913049029,-500.0,0.00027671,2]
[322248122,1712913049039,-500.0,0.00027671,2]
[322248123,1712913049049,-500.0,0.00027671,2]
[322248124,1712913049059,-500.0,0.00027671,2]
[322248125,1712913049070,-500.0,0.00027671,2]
[322248126,1712913049080,-500.0,0.00027671,2]
[322248127,1712913049090,-500.0,0.00027671,2]
[322248128,1712913049101,-500.0,0.00027671,2]
[322248129,1712913049111,-500.0,0.00027671,2]
[322248130,1712913049123,-500.0,0.00027671,2]
[322248131,1712913049133,-500.0,0.00027671,2]
[322248132,1712913049142,-500.0,0.00027671,2]
[322248133,1712913049151,-500.0,0.00027671,2]
[322248134,1712913049160,-500.0,0.00027671,2]
[322248135,1712913049170,-500.0,0.00027671,2]
[322248136,1712913049179,-500.0,0.00027671,2]
[322248137,1712913049189,-500.0,0.00027671,2]
[322248138,1712913049198,-509.37436161,0.00027671,2]
[322248139,1712913049208,-500.0,0.00027671,2]
[322248140,1712913049218,-500.0,0.00027671,2]
[322248141,1712913049227,-500.0,0.00027671,2]
[322248142,1712913049237,-500.0,0.00027671,2]
[322248143,1712913049246,-567.16762757,0.00027671,2]
[322248144,1712913049256,-500.0,0.00027671,2]
[322248145,1712913049266,-500.0,0.00027671,2]
[322248146,1712913049275,-500.0,0.00027671,2]
[322248147,1712913049284,-500.0,0.00027671,2]
[322248148,1712913049294,-500.0,0.00027671,2]
[322248149,1712913049304,-500.0,0.00027671,2]
[322248150,1712913049315,-150.0,0.00027671,2]
[322248151,1712913049325,-500.0,0.00027671,2]
[322248152,1712913049335,-500.0,0.00027671,2]
[322248153,1712913049344,-500.0,0.00027671,2]
[322248154,1712913049354,-500.0,0.00027671,2]
[322248155,1712913049364,-500.0,0.00027671,2]
[322248156,1712913049373,-500.0,0.00027671,2]
[322248157,1712913049383,-500.0,0.00027671,2]
[322248158,1712913049392,-500.0,0.00027671,2]
[322248159,1712913049402,-522.3,0.00027671,2]
[322248160,1712913049412,-500.0,0.00027671,2]
[322248161,1712913049421,-184.86345095,0.00027671,2]
[322248162,1712913049430,-500.0,0.00027671,2]
[322248163,1712913049440,-397.13,0.00027671,2]
[322248164,1712913049450,-500.0,0.00027671,2]
[322248165,1712913049459,-500.0,0.00027671,2]
[322248166,1712913049469,-500.0,0.00027671,2]
[322248167,1712913049478,-500.0,0.00027671,2]
[322248168,1712913049487,-506.24424965,0.00027671,2]
[322248169,1712913049497,-500.0,0.00027671,2]
[322248170,1712913049506,-500.0,0.00027671,2]
[322248171,1712913049515,-253.25685155,0.00027671,2]
[322248172,1712913049525,-500.0,0.00027671,2]
[322248173,1712913049534,-500.0,0.00027671,2]
[322248174,1712913049545,-500.0,0.00027671,2]
[322248175,1712913049554,-506.51055647,0.00027671,2]
[322248176,1712913049565,-500.0,0.00027671,2]
[322248177,1712913049574,-500.0,0.00027671,2]
[322248178,1712913049584,-500.0,0.00027671,2]
[322248179,1712913049596,-595.67,0.00027671,2]
[322248180,1712913049606,-500.0,0.00027671,2]
[322248181,1712913049615,-500.0,0.00027671,2]
[322248182,1712913049625,-554.42,0.00027671,2]
[322248183,1712913049635,-500.0,0.00027671,2]
[322248184,1712913049645,-500.0,0.00027671,2]
[322248185,1712913049655,-500.0,0.00027671,2]
[322248186,1712913049665,-500.0,0.00027671,2]
[322248187,1712913049675,-500.0,0.00027671,2]
[322248188,1712913049684,-500.0,0.00027671,2]
[322248189,1712913049694,-500.0,0.00027671,2]
[322248190,1712913049703,-500.0,0.00027671,2]
[322248191,1712913049713,-370.1179457,0.00027671,2]
[322248192,1712913049723,-500.0,0.00027671,2]
[322248193,1712913049733,-500.0,0.00027671,2]
[322248194,1712913049742,-500.0,0.00027671,2]
[322248195,1712913049752,-1693.89,0.00027671,2]
[322248196,1712913049761,-500.0,0.00027671,2]
[322248197,1712913049771,-500.0,0.00027671,2]
[322248198,1712913049781,-1344.19,0.00027671,2]
[322248199,1712913049791,-500.0,0.00027671,2]
[322248200,1712913049800,-500.0,0.00027671,2]
[322248201,1712913049809,-500.0,0.00027671,2]
[322248202,1712913049822,-500.0,0.00027671,2]
[322248203,1712913049831,-500.0,0.00027671,2]
[322248204,1712913049841,-208.18935424,0.00027671,2]
[322248205,1712913049850,-557.5,0.00027671,2]
[322248206,1712913049860,-500.0,0.00027671,2]
[322248207,1712913049869,-500.0,0.00027671,2]
[322248208,1712913049879,-500.0,0.00027671,2]
[322248209,1712913049889,-500.0,0.00027671,2]
[322248210,1712913049898,-1426.98,0.00027671,2]
[322248211,1712913049907,-500.0,0.00027671,2]
[322248212,1712913049917,-500.0,0.00027671,2]
[322248213,1712913049927,-500.0,0.00027671,2]
[322248214,1712913049937,-613.24,0.00027671,2]
[322248215,1712913049946,-500.0,0.00027671,2]
[322248216,1712913049956,-500.0,0.00027671,2]
[322248217,1712913049966,-500.0,0.00027671,2]
[322248218,1712913049975,-4902.69,0.00027671,2]
[322248219,1712913049984,-500.0,0.00027671,2]
[322248220,1712913049994,-500.0,0.00027671,2]
[322248221,1712913050003,-589.66,0.00027671,2]
[322248222,1712913050013,-500.0,0.00027671,2]
[322248223,1712913050023,-500.0,0.00027671,2]
[322248224,1712913050034,-543.08559547,0.00027671,2]
[322248225,1712913050044,-500.0,0.00027671,2]
[322248226,1712913050053,-500.0,0.00027671,2]
[322248227,1712913050064,-500.0,0.00027671,2]
[322248228,1712913050074,-500.0,0.00027671,2]
[322248229,1712913050083,-500.0,0.00027671,2]
[322248230,1712913050093,-500.0,0.00027671,2]
[322248231,1712913050102,-500.0,0.00027671,2]
[322248232,1712913050111,-500.0,0.00027671,2]
[322248233,1712913050121,-500.0,0.00027671,2]
[322248234,1712913050130,-783.37,0.00027671,2]
[322248235,1712913050140,-500.0,0.00027671,2]
[322248236,1712913050149,-500.0,0.00027671,2]
[322248237,1712913050159,-500.0,0.00027671,2]
[322248238,1712913050168,-500.0,0.00027671,2]
[322248239,1712913050178,-500.0,0.00027671,2]
[322248240,1712913050187,-500.0,0.00027671,2]
[322248241,1712913050197,-500.0,0.00027671,2]
[322248242,1712913050206,-500.0,0.00027671,2]
[322248243,1712913050215,-1116.46,0.00027671,2]
[322248244,1712913050225,-500.0,0.00027671,2]
[322248245,1712913050234,-942.27,0.00027671,2]
[322248246,1712913050246,-500.0,0.00027671,2]
[322248247,1712913050272,-500.0,0.00027671,2]
[322248248,1712913050282,-500.0,0.00027671,2]
[322248249,1712913050292,-1102.09,0.00027671,2]
[322248250,1712913050302,-500.0,0.00027671,2]
[322248251,1712913050311,-500.0,0.00027671,2]
[322248252,1712913050321,-500.0,0.00027671,2]
[322248253,1712913050331,-724.59,0.00027671,2]
[322248254,1712913050340,-500.0,0.00027671,2]
[322248255,1712913050349,-500.0,0.00027671,2]
[322248256,1712913050359,-6220.28,0.00027671,2]
[322248257,1712913050369,-710.01,0.00027671,2]
[322248258,1712913050378,-500.0,0.00027671,2]
[322248259,1712913050387,-500.0,0.00027671,2]
[322248260,1712913050396,-500.0,0.00027671,2]
[322248261,1712913050406,-500.0,0.00027671,2]
[322248262,1712913050415,-500.0,0.00027671,2]
[322248263,1712913050425,-500.0,0.00027671,2]
[322248264,1712913050435,-500.0,0.00027671,2]
[322248265,1712913050444,-500.0,0.00027671,2]
[322248266,1712913050454,-500.0,0.00027671,2]
[322248267,1712913050463,-652.05,0.00027671,2]
[322248268,1712913050473,-500.0,0.00027671,2]
[322248269,1712913050483,-200.58968481,0.00027671,2]
[322248270,1712913050493,-500.0,0.00027671,2]
[322248271,1712913050502,-1053.91,0.00027671,2]
[322248272,1712913050512,-2583.5,0.00027671,2]
[322248273,1712913050521,-2164.81,0.00027671,2]
[322248274,1712913050531,-500.0,0.00027671,2]
[322248275,1712913050541,-500.0,0.00027671,2]
[322248276,1712913050550,-500.0,0.00027671,2]
[322248277,1712913050561,-500.0,0.00027671,2]
[322248278,1712913050574,-500.0,0.00027671,2]
[322248279,1712913050586,-500.0,0.00027671,2]
[322248280,1712913050597,-500.0,0.00027671,2]
[322248281,1712913050608,-1027.51,0.00027671,2]
[322248282,1712913050618,-500.0,0.00027671,2]
[322248283,1712913050630,-2080.21,0.00027671,2]
[322248284,1712913050639,-1105.7,0.00027671,2]
[322248285,1712913050650,-500.0,0.00027671,2]
[322248286,1712913050661,-1722.55,0.00027671,2]
[322248287,1712913050672,-1530.77,0.00027671,2]
[322248288,1712913050685,-583.55,0.00027671,2]
[322248289,1712913050695,-500.0,0.00027671,2]
[322248290,1712913050706,-500.0,0.00027671,2]
[322248291,1712913050717,-1217.73,0.00027671,2]
[322248292,1712913050727,-11130.2,0.00027671,2]
[322248293,1712913050739,-821.08,0.00027671,2]
[322248294,1712913050749,-500.0,0.00027671,2]
[322248295,1712913050760,-256.92691488,0.00027671,2]
[322248296,1712913050770,-500.0,0.00027671,2]
[322248297,1712913050781,-500.0,0.00027671,2]
[322248298,1712913050933,-1938.7,0.00027671,2]
[322248299,1712913050963,-500.0,0.00027671,2]
[322248300,1712913050975,-500.0,0.00027671,2]
[322248301,1712913050986,-500.0,0.00027671,2]
[322248302,1712913050998,-930.87,0.00027671,2]
[322248303,1712913051008,-2176.5,0.00027671,2]
[322248304,1712913051020,-500.0,0.00027671,2]
[322248305,1712913051030,-500.0,0.00027671,2]
[322248306,1712913051041,-500.0,0.00027671,2]
[322248307,1712913051051,-551.46,0.00027671,2]
[322248308,1712913051061,-2252.47,0.00027671,2]
[322248309,1712913051072,-500.0,0.00027671,2]
[322248310,1712913051081,-500.0,0.00027671,2]
[322248311,1712913051091,-500.0,0.00027671,2]
[322248312,1712913051102,-500.0,0.00027671,2]
[322248313,1712913051113,-1111.76,0.00027671,2]
[322248314,1712913051124,-621.09,0.00027671,2]
[322248315,1712913051134,-779.64,0.00027671,2]
[322248316,1712913051144,-1124.57,0.00027671,2]
[322248317,1712913051154,-500.0,0.00027671,2]
[322248318,1712913051165,-500.0,0.00027671,2]
[322248319,1712913051176,-500.0,0.00027671,2]
[322248320,1712913051186,-500.0,0.00027671,2]
[322248321,1712913051197,-500.0,0.00027671,2]
[322248322,1712913051208,-914.69,0.00027671,2]
[322248323,1712913051218,-925.11,0.00027671,2]
[322248324,1712913051229,-1311.53,0.00027671,2]
[322248325,1712913051241,-888.39,0.00027671,2]
[322248326,1712913051252,-500.0,0.00027671,2]
[322248327,1712913051263,-742.51,0.00027671,2]
[322248328,1712913051274,-644.08381521,0.00027671,2]
[322248329,1712913051284,-500.0,0.00027671,2]
[322248330,1712913051295,-500.0,0.00027671,2]
[322248331,1712913051305,-500.0,0.00027671,2]
[322248332,1712913051317,-500.0,0.00027671,2]
[322248333,1712913051327,-1305.4,0.00027671,2]
[322248334,1712913051337,-1858.46,0.00027671,2]
[322248335,1712913051347,-844.56,0.00027671,2]
[322248336,1712913051357,-510.32,0.00027671,2]
[322248337,1712913051367,-500.0,0.00027671,2]
[322248338,1712913051376,-920.2,0.00027671,2]
[322248339,1712913051386,-500.0,0.00027671,2]
[322248340,1712913051395,-500.0,0.00027671,2]
[322248341,1712913051405,-1490.11,0.00027671,2]
[322248342,1712913051415,-500.0,0.00027671,2]
[322248343,1712913051425,-662.41,0.00027671,2]
[322248344,1712913051435,-500.0,0.00027671,2]
[322248345,1712913051445,-663.55,0.00027671,2]
[322248346,1712913051455,-500.0,0.00027671,2]
[322248347,1712913051467,-500.0,0.00027671,2]
[322248348,1712913051478,-500.0,0.00027671,2]
[322248349,1712913051489,-688.0,0.00027671,2]
[322248350,1712913051499,-500.0,0.00027671,2]
[322248351,1712913051509,-500.0,0.00027671,2]
[322248352,1712913051520,-4281.14,0.00027671,2]
[322248353,1712913051531,-500.0,0.00027671,2]
[322248354,1712913051543,-500.0,0.00027671,2]
[322248355,1712913051561,-500.0,0.00027671,2]
[322248356,1712913051571,-684.9,0.00027671,2]
[322248357,1712913051583,-500.0,0.00027671,2]
[322248358,1712913051593,-924.68,0.00027772,2]
[322248359,1712913051605,-150.0,0.000279,2]
[322248360,1712913051615,-157.57019945,0.0002794,2]
[322248361,1712913051624,-500.0,0.00027943,2]
[322248362,1712913051635,-500.0,0.00027943,2]
[322248363,1712913051645,-500.0,0.00027944,2]
[322248364,1712913051655,-500.0,0.00027944,2]
[322248365,1712913051665,-500.0,0.00027945,2]
[322248366,1712913051679,-500.0,0.00027945,2]
[322248367,1712913051689,-500.0,0.00027945,2]
[322248368,1712913051699,-500.0,0.00027945,2]
[322248369,1712913051710,-500.0,0.00027945,2]
[322248370,1712913051720,-500.0,0.00027945,2]
[322248371,1712913051730,-535.52460128,0.00027945,2]
[322248372,1712913051739,-500.0,0.00027945,2]
[322248373,1712913051749,-500.0,0.00027945,2]
[322248374,1712913051759,-500.0,0.00027945,2]
[322248375,1712913051769,-500.0,0.00027945,2]
[322248376,1712913051778,-500.0,0.00027945,2]
[322248377,1712913051788,-500.0,0.00027945,2]
[322248378,1712913051798,-500.0,0.00027945,2]
[322248379,1712913051808,-500.0,0.00027945,2]
[322248380,1712913051820,-500.0,0.00027945,2]
[322248381,1712913051829,-500.0,0.00027945,2]
[322248382,1712913051841,-500.0,0.00027945,2]
[322248383,1712913051851,-151.37369953,0.00027945,2]
[322248384,1712913051862,-500.0,0.00027945,2]
[322248385,1712913051873,-500.0,0.00027945,2]
[322248386,1712913051884,-500.0,0.00027945,2]
[322248387,1712913051894,-577.46812739,0.00027945,2]
[322248388,1712913051903,-500.0,0.00027945,2]
[322248389,1712913051914,-500.0,0.00027945,2]
[322248390,1712913051924,-500.0,0.00027945,2]
[322248391,1712913051934,-343.26471473,0.00027945,2]
[322248392,1712913051945,-500.0,0.00027945,2]
[322248393,1712913051956,-500.0,0.00027945,2]
[322248394,1712913051966,-500.0,0.00027945,2]
[322248395,1712913051976,-500.0,0.00027945,2]
[322248396,1712913051988,-600.90969125,0.00027945,2]
[322248397,1712913051998,-500.0,0.00027945,2]
[322248398,1712913052010,-500.0,0.00027945,2]
[322248399,1712913052021,-500.0,0.00027945,2]
[322248400,1712913052031,-500.0,0.00027945,2]
[322248401,1712913052041,-500.0,0.00027945,2]
[322248402,1712913052052,-500.0,0.00027945,2]
[322248403,1712913052062,-500.0,0.00027945,2]
[322248404,1712913052071,-500.0,0.00027945,2]
[322248405,1712913052080,-500.0,0.00027945,2]
[322248406,1712913052090,-500.0,0.00027945,2]
[322248407,1712913052101,-500.0,0.00027945,2]
[322248408,1712913052112,-500.0,0.00027945,2]
[322248409,1712913052123,-500.0,0.00027945,2]
[322248410,1712913052134,-500.0,0.00027945,2]
[322248411,1712913052147,-500.0,0.00027945,2]
[322248412,1712913052159,-500.0,0.00027945,2]
[322248413,1712913052170,-500.0,0.00027945,2]
[322248414,1712913052182,-500.0,0.00027945,2]
[322248415,1712913052192,-500.0,0.00027945,2]
[322248416,1712913052203,-500.0,0.00027945,2]